bitfinex-derivatives/quotes_BTCF0:USTF0_20230401
["timestamp","ask_amount","ask_price","bid_price","bid_amount"]
[1680331140469,0.005,28458.0,28457.0,0.001]
[1680331140662,0.0753,28458.0,28457.0,0.001]
[1680331141166,0.0703,28458.0,28456.0,0.112436]
[1680331141377,0.005,28458.0,28457.0,0.001]
[1680331141556,0.0753,28458.0,28457.0,0.001]
[1680331146464,0.0753,28458.0,28457.0,0.051]
[1680331146967,0.0753,28458.0,28457.0,0.0708]
[1680331151367,0.005,28458.0,28457.0,0.43464394]
[1680331151561,0.0029,28458.0,28457.0,0.43464394]
[1680331151971,0.3007,28463.0,28458.0,0.05]
[1680331151972,0.0703,28463.0,28458.0,0.05]
[1680331152172,0.0703,28463.0,28462.0,0.0703]
[1680331153272,0.0703,28463.0,28459.0,0.07135043]
[1680331153470,0.05,28463.0,28462.0,0.002]
[1680331153674,0.1203,28463.0,28462.0,0.002]
[1680331156969,0.1906,28463.0,28462.0,0.002]
[1680331158375,0.0703,28463.0,28462.0,0.002]
[1680331158768,0.0703,28463.0,28462.0,0.00418684]
[1680331166977,0.0703,28463.0,28462.0,0.07448684]
[1680331169679,0.07,28463.0,28462.0,0.07418684]
[1680331176989,0.0703,28465.0,28462.0,0.07448684]
[1680331177189,0.0703,28465.0,28464.0,0.0703]
[1680331177590,0.0703,28465.0,28464.0,0.07300939]
[1680331178283,0.0703,28465.0,28464.0,0.07500939]
[1680331181182,0.38581208,28469.0,28464.0,0.07500939]
[1680331181183,0.0703,28467.0,28464.0,0.37570939]
[1680331181388,0.0703,28467.0,28466.0,0.0702]
[1680331182992,0.0703,28467.0,28466.0,0.0722]
[1680331187095,0.0697,28467.0,28466.0,0.0723]
[1680331188997,0.0697,28467.0,28466.0,0.07579493]
[1680331197100,0.0703,28468.0,28466.0,0.07529493]
[1680331198107,0.05,28467.0,28466.0,0.07529493]
[1680331198703,0.1203,28468.0,28466.0,0.07529493]
[1680331201615,0.0703,28468.0,28466.0,0.07529493]
[1680331205613,0.07,28468.0,28467.0,0.0697]
[1680331205809,0.12,28468.0,28467.0,0.0697]
[1680331206004,0.07,28468.0,28467.0,0.07318182]
[1680331207012,0.371,28469.0,28467.0,0.37598182]
[1680331210618,0.371,28469.0,28467.0,0.07528182]
[1680331211517,0.371,28469.0,28467.0,0.37598182]
[1680331213615,0.05,28468.0,28467.0,0.37598182]
[1680331214017,0.1203,28468.0,28467.0,0.00548182]
[1680331221627,0.1906,28467.0,28462.0,0.04211292]
[1680331221823,0.0703,28463.0,28462.0,0.04211292]
[1680331222830,0.0703,28463.0,28462.0,0.04411292]
[1680331223223,0.0723,28463.0,28462.0,0.04411292]
[1680331223424,0.0723,28463.0,28462.0,0.002]
[1680331224838,0.1426,28463.0,28462.0,0.002]
[1680331225027,0.1926,28463.0,28462.0,0.002]
[1680331225227,0.1426,28463.0,28462.0,0.002]
[1680331225429,0.002,28463.0,28462.0,0.0723]
[1680331229329,0.002,28463.0,28462.0,0.07534939]
[1680331230439,0.002,28463.0,28462.0,0.12534939]
[1680331230836,0.002,28463.0,28462.0,0.07534939]
[1680331238443,0.002,28463.0,28462.0,0.11746231]
[1680331238847,0.0703,28466.0,28463.0,0.05]
[1680331239037,0.0703,28466.0,28465.0,0.371]
[1680331239241,0.0703,28466.0,28465.0,0.07349237]
[1680331240442,0.0703,28466.0,28465.0,0.07549237]
[1680331241546,0.1203,28466.0,28465.0,0.07549237]
[1680331247058,0.1201,28466.0,28465.0,0.00519237]
[1680331249258,0.0701,28466.0,28465.0,0.00519237]
[1680331250855,0.05,28468.0,28465.0,0.07509237]
[1680331251054,0.421,28469.0,28467.0,0.0703]
[1680331251250,0.421,28469.0,28468.0,0.00319382]
[1680331251757,0.421,28469.0,28468.0,0.00319388]
[1680331252061,0.421,28469.0,28467.0,0.0723]
[1680331252563,0.371,28469.0,28467.0,0.0723]
[1680331252760,0.371,28469.0,28467.0,0.0703]
[1680331252961,0.371,28469.0,28468.0,0.002]
[1680331253357,0.371,28469.0,28467.0,0.0723]
[1680331253662,0.05,28468.0,28467.0,0.0723]
[1680331253858,0.1203,28468.0,28467.0,0.002]
[1680331254661,0.1203,28468.0,28464.0,0.0702]
[1680331254962,0.05,28465.0,28464.0,0.0702]
[1680331255462,0.0701,28466.0,28464.0,0.0702]
[1680331255662,0.0701,28466.0,28464.0,0.0722]
[1680331263168,0.0701,28466.0,28465.0,0.00319548]
[1680331264465,0.0701,28466.0,28465.0,0.00519548]
[1680331265862,0.0703,28466.0,28465.0,0.00519548]
[1680331267068,0.0701,28466.0,28465.0,0.07489548]
[1680331269977,0.0702,28466.0,28465.0,0.00519548]
[1680331270279,0.1202,28466.0,28465.0,0.00519548]
[1680331274485,0.0702,28466.0,28465.0,0.00519548]
[1680331277881,0.10604542,28466.0,28465.0,0.00519548]
[1680331278480,0.15604542,28466.0,28465.0,0.00519548]
[1680331280087,0.08584542,28466.0,28465.0,0.00519548]
[1680331280390,0.15614542,28466.0,28465.0,0.00519548]
[1680331282880,0.15614542,28466.0,28465.0,0.00507185]
[1680331287281,0.10614542,28466.0,28465.0,0.00507185]
[1680331289894,0.15614542,28466.0,28465.0,0.00507185]
[1680331291482,0.05,28465.0,28464.0,0.04211292]
[1680331291688,0.1202,28465.0,28464.0,0.04211292]
[1680331291888,0.1202,28465.0,28464.0,0.00279926]
[1680331292889,0.1292,28465.0,28464.0,0.00479926]
[1680331293597,0.1292,28465.0,28464.0,0.00362442]
[1680331294999,0.1995,28465.0,28464.0,0.00362442]
[1680331295595,0.1495,28465.0,28464.0,0.00362442]
[1680331295991,0.19872605,28465.0,28464.0,0.00362442]
[1680331299097,0.14872605,28465.0,28464.0,0.00362442]
[1680331300205,0.19872605,28465.0,28464.0,0.00362442]
[1680331302706,0.14872605,28465.0,28464.0,0.00362442]
[1680331304505,0.07902605,28465.0,28464.0,0.00362442]
[1680331322510,0.0703,28467.0,28465.0,0.05]
[1680331322715,0.0703,28467.0,28465.0,0.16181292]
[1680331322920,0.0703,28467.0,28466.0,0.00162779]
[1680331324012,0.0703,28467.0,28466.0,0.00362779]
[1680331325917,0.0701,28467.0,28466.0,0.00362779]
[1680331337018,0.0703,28467.0,28466.0,0.00362779]
[1680331354537,0.0703,28467.0,28466.0,0.05362779]
[1680331354736,0.0703,28467.0,28466.0,0.00362779]
[1680331356332,0.0703,28467.0,28466.0,0.05362779]
[1680331356731,0.0703,28467.0,28466.0,0.00362779]
[1680331357239,0.07,28468.0,28466.0,0.11574071]
[1680331357433,0.07,28468.0,28467.0,0.371]
[1680331357637,0.07,28468.0,28467.0,0.42263162]
[1680331358536,0.07,28468.0,28467.0,0.42463162]
[1680331359134,0.07,28468.0,28467.0,0.37463162]
[1680331359943,0.07,28468.0,28467.0,0.07393162]
[1680331363242,0.07,28468.0,28467.0,0.12393162]
[1680331365442,0.07,28468.0,28467.0,0.11604454]
[1680331366932,0.07,28468.0,28467.0,0.41674454]
[1680331367137,0.12335554,28470.0,28467.0,0.41674454]
[1680331367334,0.0703,28470.0,28469.0,0.05]
[1680331367739,0.0703,28470.0,28468.0,0.1203]
[1680331368043,0.0703,28470.0,28469.0,0.00252506]
[1680331368244,0.0703,28470.0,28469.0,0.0702]
[1680331368441,0.17802969,28472.0,28469.0,0.0702]
[1680331368641,0.17802969,28472.0,28471.0,0.0697]
[1680331369037,0.17802969,28472.0,28471.0,0.1197]
[1680331369242,0.17802969,28472.0,28471.0,0.0697]
[1680331369739,0.23150573,28472.0,28471.0,0.0697]
[1680331370442,0.23150573,28472.0,28471.0,0.0717]
[1680331371942,0.28150573,28472.0,28471.0,0.07156468]
[1680331372344,0.23150573,28472.0,28471.0,0.07156468]
[1680331376338,0.23150573,28472.0,28471.0,0.37226468]
[1680331377344,0.0702,28472.0,28471.0,0.42226468]
[1680331378742,0.0702,28472.0,28471.0,0.37226468]
[1680331379147,0.0702,28472.0,28471.0,0.42226468]
[1680331381246,0.0702,28472.0,28471.0,0.37226468]
[1680331381443,0.0329958,28473.0,28471.0,0.373]
[1680331381747,0.0697,28477.0,28472.0,0.18271292]
[1680331381945,0.0697,28477.0,28476.0,0.371]
[1680331382946,0.0697,28477.0,28476.0,0.37735956]
[1680331385544,0.0697,28477.0,28476.0,0.67805956]
[1680331386145,0.0703,28478.0,28476.0,0.67805956]
[1680331386755,0.0703,28477.0,28476.0,0.00635956]
[1680331388442,0.07,28478.0,28476.0,0.07665956]
[1680331388949,0.07,28478.0,28477.0,0.05]
[1680331390356,0.07,28478.0,28477.0,0.3507]
[1680331390950,0.07,28478.0,28477.0,0.3527]
[1680331392952,0.07,28478.0,28477.0,0.3027]
[1680331395060,0.07,28478.0,28477.0,0.3527]
[1680331396853,0.0703,28481.0,28477.0,0.423]
[1680331397058,0.05173002,28483.0,28481.0,0.05]
[1680331397266,0.0703,28482.0,28480.0,0.371]
[1680331398058,0.0703,28482.0,28481.0,0.00574457]
[1680331399459,0.0703,28482.0,28481.0,0.00774457]
[1680331404269,0.0703,28482.0,28481.0,0.05774457]
[1680331404669,0.0703,28482.0,28481.0,0.00774457]
[1680331404866,0.0703,28482.0,28481.0,0.05774457]
[1680331405071,0.0703,28482.0,28481.0,0.00774457]
[1680331407067,0.07,28483.0,28481.0,0.07804457]
[1680331407967,0.07,28483.0,28481.0,0.07604457]
[1680331408168,0.07,28483.0,28481.0,0.07804457]
[1680331413272,1.00156718,28490.0,28484.0,0.4]
[1680331413474,0.1245366,28493.0,28489.0,0.6014]
[1680331413676,0.0354714,28496.0,28492.0,0.3007]
[1680331413870,0.3514,28497.0,28490.0,0.37663059]
[1680331414180,0.05,28495.0,28492.0,0.3007]
[1680331414379,0.05,28495.0,28494.0,0.0703]
[1680331415075,0.05,28498.0,28494.0,0.0703]
[1680331415280,0.05,28496.0,28494.0,0.0703]
[1680331415682,0.05,28496.0,28494.0,0.0723]
[1680331415873,0.0703,28497.0,28494.0,0.0723]
[1680331416074,0.05,28496.0,28494.0,0.0723]
[1680331416375,0.05,28497.0,28495.0,0.0702]
[1680331416572,0.05,28497.0,28496.0,0.0703]
[1680331416980,0.05,28497.0,28496.0,0.0699]
[1680331417180,0.4014,28498.0,28496.0,0.0699]
[1680331417479,0.4014,28498.0,28497.0,0.0703]
[1680331419082,0.4014,28498.0,28497.0,0.07896429]
[1680331419578,0.4014,28498.0,28497.0,0.08096429]
[1680331420880,0.3514,28498.0,28497.0,0.08096429]
[1680331421283,0.4014,28498.0,28497.0,0.08096429]
[1680331421786,0.3514,28498.0,28497.0,0.08096429]
[1680331422174,0.4014,28498.0,28497.0,0.08096429]
[1680331422678,0.3514,28498.0,28497.0,0.08096429]
[1680331423282,0.4014,28498.0,28497.0,0.08096429]
[1680331424286,0.3514,28498.0,28497.0,0.08096429]
[1680331424981,0.4014,28498.0,28497.0,0.08096429]
[1680331425887,0.3514,28499.0,28497.0,0.08096429]
[1680331426081,0.05,28498.0,28497.0,0.08096429]
[1680331426685,0.05,28498.0,28497.0,0.07896429]
[1680331426983,0.05,28498.0,28497.0,0.08096429]
[1680331427184,0.4014,28499.0,28497.0,0.07896429]
[1680331427385,0.3514,28499.0,28497.0,0.08096429]
[1680331427883,0.371,28500.0,28497.0,0.08096429]
[1680331428379,0.371,28500.0,28497.0,0.07896429]
[1680331428580,0.371,28500.0,28497.0,0.08096429]
[1680331429481,0.421,28500.0,28497.0,0.08096429]
[1680331429878,0.3007,28500.0,28499.0,0.0703]
[1680331430082,0.4,28501.0,28499.0,0.0703]
[1680331430281,0.371,28503.0,28500.0,0.0703]
[1680331430477,0.371,28503.0,28501.0,0.0703]
[1680331430683,0.05,28502.0,28501.0,0.0703]
[1680331430982,0.4717,28502.0,28501.0,0.00818786]
[1680331431188,0.3514,28500.0,28497.0,0.002]
[1680331431381,0.0702,28498.0,28497.0,0.002]
[1680331431578,0.1202,28498.0,28497.0,0.002]
[1680331431885,0.1202,28498.0,28497.0,0.00716448]
[1680331432084,0.1202,28498.0,28497.0,0.002]
[1680331434486,0.3507,28499.0,28497.0,0.0723]
[1680331434783,0.07,28500.0,28498.0,0.0697]
[1680331435484,0.3514,28499.0,28498.0,0.0697]
[1680331435688,0.4014,28499.0,28498.0,0.0717]
[1680331436290,0.4014,28499.0,28498.0,0.07886533]
[1680331436484,0.4014,28499.0,28498.0,0.0717]
[1680331436990,0.4717,28499.0,28498.0,0.002]
[1680331437396,0.4014,28499.0,28498.0,0.002]
[1680331438981,0.05,28499.0,28498.0,0.002]
[1680331439388,0.0871,28500.0,28498.0,0.002]
[1680331439586,0.0871,28500.0,28498.0,0.00913493]
[1680331439788,0.0871,28500.0,28498.0,0.002]
[1680331440197,0.0871,28500.0,28496.0,0.05]
[1680331440390,0.0871,28500.0,28498.0,0.002]
[1680331441298,0.0871,28500.0,28499.0,0.00682064]
[1680331442296,0.05,28501.0,28499.0,0.00682064]
[1680331442297,0.05,28502.0,28499.0,0.09392064]
[1680331443096,0.05,28502.0,28499.0,0.09592064]
[1680331443297,0.05,28502.0,28499.0,0.09392064]
[1680331443496,0.05,28502.0,28499.0,0.09592064]
[1680331444291,0.7392,28503.0,28499.0,0.09592064]
[1680331444693,0.05,28502.0,28499.0,0.09592064]
[1680331446195,0.1377,28502.0,28499.0,0.00682064]
[1680331446498,0.1377,28502.0,28499.0,0.00882064]
[1680331448200,0.0877,28502.0,28499.0,0.00882064]
[1680331448500,0.1377,28502.0,28499.0,0.00882064]
[1680331449304,0.0877,28502.0,28499.0,0.00882064]
[1680331450707,0.1377,28502.0,28499.0,0.00882064]
[1680331451005,0.0877,28502.0,28499.0,0.00882064]
[1680331452009,0.1377,28502.0,28499.0,0.00882064]
[1680331453203,0.05,28501.0,28499.0,0.00882064]
[1680331453812,0.0877,28502.0,28499.0,0.00882064]
[1680331454208,0.05,28501.0,28499.0,0.00882064]
[1680331454900,0.05,28501.0,28499.0,0.00682064]
[1680331455105,0.05,28501.0,28499.0,0.00882064]
[1680331455307,0.05,28501.0,28499.0,0.002]
[1680331455507,0.05,28501.0,28500.0,0.0059282]
[1680331455707,0.05,28501.0,28499.0,0.002]
[1680331457103,0.05,28501.0,28500.0,0.002]
[1680331458009,0.05,28501.0,28500.0,0.00592866]
[1680331458413,0.05,28501.0,28500.0,0.002]
[1680331461608,0.4891,28501.0,28495.0,0.0873]
[1680331461906,0.6891,28499.0,28495.0,0.0873]
[1680331462107,0.3007,28496.0,28495.0,0.0873]
[1680331462307,0.05,28498.0,28495.0,0.0873]
[1680331462507,0.7392,28496.0,28491.0,0.3208]
[1680331462703,0.0877,28492.0,28491.0,0.3208]
[1680331462911,0.1377,28492.0,28488.0,0.3007]
[1680331463507,0.05,28491.0,28488.0,0.34281292]
[1680331463712,0.05,28491.0,28488.0,0.3007]
[1680331464215,0.05,28491.0,28488.0,0.3067]
[1680331464714,0.05,28491.0,28488.0,0.3137]
[1680331465119,0.05,28491.0,28488.0,0.3027]
[1680331466115,0.05,28491.0,28488.0,0.3007]
[1680331466315,0.05,28491.0,28488.0,0.3027]
[1680331467314,0.05,28491.0,28488.0,0.34481292]
[1680331467907,0.19103437,28492.0,28488.0,0.34481292]
[1680331468103,0.19103437,28492.0,28488.0,0.04411292]
[1680331468313,0.05,28491.0,28488.0,0.04411292]
[1680331470814,0.19103437,28492.0,28488.0,0.04411292]
[1680331472115,0.05,28491.0,28488.0,0.04211292]
[1680331472315,0.05,28491.0,28488.0,0.04411292]
[1680331473120,0.05,28491.0,28489.0,0.00548066]
[1680331474817,0.05,28491.0,28489.0,0.00748066]
[1680331475012,0.19103437,28492.0,28489.0,0.00748066]
[1680331475321,0.05,28491.0,28489.0,0.00748066]
[1680331475816,0.439,28490.0,28489.0,0.00748066]
[1680331476221,0.489,28490.0,28489.0,0.00748066]
[1680331476524,0.489,28490.0,28489.0,0.002]
[1680331477317,0.489,28490.0,28484.0,0.3007]
[1680331477520,0.4014,28490.0,28489.0,0.001]
[1680331477720,0.4891,28490.0,28489.0,0.001]
[1680331478017,0.4891,28490.0,28489.0,0.002]
[1680331478222,0.4891,28490.0,28484.0,0.3007]
[1680331478423,0.05,28489.0,28487.0,0.3007]
[1680331478716,0.1745366,28495.0,28489.0,0.04125978]
[1680331478717,0.1372,28495.0,28489.0,0.04125978]
[1680331478918,0.1372,28495.0,28489.0,0.12895978]
[1680331479116,0.1372,28495.0,28489.0,0.13095978]
[1680331479518,0.877,28498.0,28494.0,0.3007]
[1680331479722,0.0876,28498.0,28494.0,0.3007]
[1680331479918,0.05,28497.0,28495.0,0.05]
[1680331480324,0.0876,28498.0,28495.0,0.05]
[1680331480922,0.0876,28498.0,28494.0,0.3527]
[1680331481123,0.0876,28498.0,28494.0,0.3507]
[1680331481323,0.0876,28498.0,28495.0,0.052]
[1680331481519,0.0876,28498.0,28495.0,0.002]
[1680331481722,0.0876,28496.0,28495.0,0.002]
[1680331481923,0.1376,28496.0,28495.0,0.002]
[1680331482621,0.1376,28496.0,28495.0,0.00770508]
[1680331482827,0.1376,28496.0,28495.0,0.002]
[1680331483228,0.1376,28496.0,28492.0,0.05]
[1680331483421,0.074,28496.0,28495.0,0.001]
[1680331483615,0.1617,28496.0,28495.0,0.001]
[1680331486027,0.21334551,28496.0,28495.0,0.001]
[1680331487630,0.21334551,28496.0,28488.0,0.3007]
[1680331487631,0.4014,28495.0,28488.0,0.3007]
[1680331487826,0.0876,28492.0,28488.0,0.3007]
[1680331488025,0.05,28491.0,28489.0,0.00572686]
[1680331488229,0.05,28491.0,28489.0,0.05572686]
[1680331488525,0.05,28491.0,28489.0,0.00572686]
[1680331489133,0.1376,28492.0,28489.0,0.00572686]
[1680331489825,0.001,28491.0,28489.0,0.01472686]
[1680331490021,0.051,28491.0,28489.0,0.06472686]
[1680331490223,0.0876,28492.0,28489.0,0.05572686]
[1680331490532,0.1376,28492.0,28489.0,0.00872686]
[1680331490934,0.001,28491.0,28489.0,0.06472686]
[1680331492032,0.0876,28492.0,28489.0,0.05872686]
[1680331492427,0.001,28491.0,28489.0,0.06472686]
[1680331493025,0.0876,28492.0,28489.0,0.05872686]
[1680331493424,0.001,28491.0,28489.0,0.06472686]
[1680331494525,0.0876,28492.0,28489.0,0.05572686]
[1680331494728,0.0876,28492.0,28489.0,0.00872686]
[1680331494928,0.0876,28492.0,28489.0,0.00572686]
[1680331495125,0.001,28491.0,28489.0,0.06472686]
[1680331495328,0.051,28491.0,28489.0,0.01472686]
[1680331495534,0.0876,28492.0,28489.0,0.00872686]
[1680331496139,0.001,28491.0,28489.0,0.01472686]
[1680331496340,0.001,28491.0,28489.0,0.06472686]
[1680331496638,0.0876,28492.0,28489.0,0.00872686]
[1680331496840,0.0876,28492.0,28489.0,0.05872686]
[1680331497042,0.0877,28493.0,28489.0,0.14642686]
[1680331497242,0.05,28492.0,28489.0,0.39712686]
[1680331497541,0.05,28492.0,28489.0,0.39412686]
[1680331497741,0.001,28491.0,28489.0,0.40312686]
[1680331497939,0.05,28492.0,28489.0,0.39412686]
[1680331498141,0.05,28492.0,28489.0,0.39712686]
[1680331498537,0.001,28491.0,28489.0,0.40312686]
[1680331499140,0.05,28492.0,28489.0,0.39712686]
[1680331499530,0.0877,28493.0,28489.0,0.39712686]
[1680331499936,0.05,28492.0,28489.0,0.39712686]
[1680331500331,0.001,28491.0,28489.0,0.10242686]
[1680331500738,0.05,28492.0,28489.0,0.09342686]
[1680331501135,0.0876,28490.0,28489.0,0.01472686]
[1680331501536,0.1376,28490.0,28489.0,0.01472686]
[1680331501740,0.1376,28490.0,28489.0,0.00572686]
[1680331501943,0.1376,28490.0,28489.0,0.00872686]
[1680331502142,0.0876,28490.0,28489.0,0.00872686]
[1680331503041,0.0896,28490.0,28489.0,0.01572686]
[1680331503739,0.0916,28490.0,28489.0,0.00572686]
[1680331506150,0.0916,28490.0,28489.0,0.3007]
[1680331506349,0.004,28490.0,28489.0,0.30451059]
[1680331507458,0.0742,28490.0,28489.0,0.30451059]
[1680331508944,0.2609,28495.0,28490.0,0.0001]
[1680331508945,0.07,28495.0,28490.0,0.0001]
[1680331509142,0.10609884,28496.0,28494.0,0.3704]
[1680331509347,0.0702,28496.0,28494.0,0.3704]
[1680331509847,0.0702,28496.0,28495.0,0.05]
[1680331510256,0.0932,28496.0,28495.0,0.05]
[1680331511347,0.0932,28496.0,28494.0,0.3714]
[1680331511844,0.0932,28496.0,28495.0,0.001]
[1680331512056,0.0932,28496.0,28495.0,0.051]
[1680331512253,0.0932,28496.0,28495.0,0.05]
[1680331512447,0.023,28496.0,28495.0,0.05]
[1680331512643,0.0877,28497.0,28495.0,0.05]
[1680331512955,0.023,28496.0,28495.0,0.001]
[1680331513151,0.0877,28497.0,28494.0,0.05]
[1680331513347,0.023,28496.0,28495.0,0.001]
[1680331514844,0.017,28496.0,28495.0,0.001]
[1680331517554,0.017,28496.0,28495.0,0.0060485]
[1680331517957,0.017,28496.0,28495.0,0.3067485]
[1680331527055,0.017,28496.0,28495.0,0.3938485]
[1680331534669,0.05163079,28496.0,28495.0,0.3938485]
[1680331534871,0.017,28496.0,28495.0,0.3938485]
[1680331541676,0.0877,28499.0,28495.0,0.3928485]
[1680331541877,0.01,28496.0,28495.0,0.3938485]
[1680331542771,0.004,28496.0,28495.0,0.3928485]
[1680331543276,0.0877,28499.0,28495.0,0.3928485]
[1680331543478,0.004,28496.0,28495.0,0.3928485]
[1680331544673,0.004,28496.0,28495.0,0.0921485]
[1680331544975,0.0908,28496.0,28490.0,0.04211292]
[1680331545171,0.0871,28492.0,28489.0,0.34281292]
[1680331545366,0.05,28491.0,28489.0,0.34281292]
[1680331545566,0.0871,28492.0,28489.0,0.34281292]
[1680331546273,0.0891,28492.0,28489.0,0.35781292]
[1680331547071,0.002,28492.0,28490.0,0.0869]
[1680331547270,0.004,28492.0,28491.0,0.05]
[1680331547676,0.13978505,28494.0,28491.0,0.05331212]
[1680331547873,0.01,28492.0,28491.0,0.05331212]
[1680331548178,0.01,28492.0,28491.0,0.14021212]
[1680331548371,0.01,28492.0,28491.0,0.14121212]
[1680331549176,0.01,28492.0,28491.0,0.09121212]
[1680331549977,0.05,28495.0,28491.0,0.09021212]
[1680331550175,0.004,28492.0,28491.0,0.00331212]
[1680331550374,0.05,28495.0,28491.0,0.09041212]
[1680331550578,0.05,28495.0,28492.0,0.0871]
[1680331550975,0.0877,28494.0,28491.0,0.00631212]
[1680331551177,0.05,28493.0,28491.0,0.00631212]
[1680331551481,0.05,28493.0,28492.0,0.001]
[1680331552079,0.054,28493.0,28491.0,0.00331212]
[1680331552278,0.054,28493.0,28490.0,0.0869]
[1680331553272,0.054,28493.0,28490.0,0.12901292]
[1680331555484,0.004,28493.0,28490.0,0.12901292]
[1680331555684,0.004,28493.0,28490.0,0.0869]
[1680331555982,0.054,28493.0,28490.0,0.0869]
[1680331556483,0.3007,28491.0,28490.0,0.0869]
[1680331556980,0.3007,28491.0,28489.0,0.04211292]
[1680331557181,0.3007,28491.0,28488.0,0.12901292]
[1680331557386,0.05,28490.0,28488.0,0.12901292]
[1680331558178,0.05,28490.0,28488.0,0.13801292]
[1680331558377,0.3517,28491.0,28488.0,0.13801292]
[1680331558577,0.3517,28491.0,28489.0,0.04211292]
[1680331558880,0.3517,28491.0,28489.0,0.09211292]
[1680331559176,0.3517,28491.0,28488.0,0.18801292]
[1680331559382,0.001,28490.0,28488.0,0.19501292]
[1680331559572,0.051,28490.0,28488.0,0.19501292]
[1680331559771,0.3017,28491.0,28489.0,0.009]
[1680331559976,0.3017,28491.0,28489.0,0.059]
[1680331560173,0.3007,28491.0,28489.0,0.05]
[1680331560376,0.001,28490.0,28488.0,0.14501292]
[1680331560680,0.001,28490.0,28488.0,0.1029]
[1680331560885,0.3017,28491.0,28489.0,0.009]
[1680331561080,0.3017,28491.0,28489.0,0.059]
[1680331561280,0.3017,28491.0,28489.0,0.009]
[1680331561984,0.001,28490.0,28488.0,0.1029]
[1680331562187,0.051,28490.0,28488.0,0.1029]
[1680331562383,0.3017,28491.0,28489.0,0.009]
[1680331562579,0.3017,28491.0,28489.0,0.06207642]
[1680331562879,0.0877,28492.0,28489.0,0.00307642]
[1680331563093,0.01,28490.0,28489.0,0.00307642]
[1680331563280,0.01,28490.0,28489.0,0.05307642]
[1680331563475,0.001,28491.0,28489.0,0.06207642]
[1680331564677,0.0877,28492.0,28489.0,0.05307642]
[1680331564883,0.004,28490.0,28489.0,0.05307642]
[1680331565187,0.05,28491.0,28489.0,0.05607642]
[1680331565482,0.0877,28492.0,28489.0,0.05607642]
[1680331565682,0.001,28490.0,28489.0,0.06207642]
[1680331566185,0.0877,28492.0,28489.0,0.00607642]
[1680331566382,0.0877,28492.0,28489.0,0.05607642]
[1680331566582,0.0877,28492.0,28489.0,0.05307642]
[1680331566785,0.001,28490.0,28489.0,0.06207642]
[1680331566984,0.001,28490.0,28489.0,0.14977642]
[1680331567185,0.001,28490.0,28489.0,0.09977642]
[1680331567884,0.004,28492.0,28489.0,0.13208934]
[1680331568180,0.05,28494.0,28491.0,0.3884]
[1680331568381,0.08557442,28495.0,28491.0,0.3884]
[1680331568778,0.03557442,28495.0,28491.0,0.3884]
[1680331569091,0.24537453,28496.0,28492.0,0.05]
[1680331570186,0.05,28495.0,28491.0,0.3884]
[1680331570493,0.05,28495.0,28492.0,0.05]
[1680331570884,0.24537453,28496.0,28492.0,0.05]
[1680331571079,0.07,28495.0,28491.0,0.3894]
[1680331571486,0.067,28495.0,28492.0,0.001]
[1680331571686,0.067,28495.0,28492.0,0.051]
[1680331571888,0.05,28495.0,28492.0,0.05]
[1680331572092,0.067,28495.0,28492.0,0.05]
[1680331572590,0.0702,28494.0,28493.0,0.0702]
[1680331573893,0.0802,28494.0,28493.0,0.0712]
[1680331574287,0.01,28494.0,28493.0,0.1404]
[1680331574492,0.01,28494.0,28493.0,0.4411]
[1680331574991,0.01,28494.0,28493.0,0.4911]
[1680331576292,0.01,28494.0,28493.0,0.7918]
[1680331576988,0.01,28494.0,28493.0,0.7919]
[1680331577592,0.01,28494.0,28493.0,0.83729386]
[1680331579887,0.7894,28499.0,28494.0,0.05]
[1680331580086,0.03463598,28501.0,28498.0,0.4409]
[1680331580391,0.3704,28502.0,28500.0,0.0701]
[1680331580696,0.3704,28502.0,28501.0,0.0699]
[1680331581201,0.3704,28502.0,28501.0,0.07423577]
[1680331581382,0.3814,28502.0,28501.0,0.07423577]
[1680331582395,0.3704,28502.0,28501.0,0.07423577]
[1680331582700,0.3814,28502.0,28501.0,0.07523577]
[1680331583091,0.41712248,28502.0,28501.0,0.07523577]
[1680331586698,0.34742248,28502.0,28501.0,0.07553577]
[1680331587000,0.40632248,28502.0,28501.0,0.00433577]
[1680331587200,0.41532248,28502.0,28501.0,0.00533577]
[1680331587400,0.41532248,28502.0,28501.0,0.001]
[1680331597604,0.11462248,28502.0,28501.0,0.001]
[1680331599699,0.23422248,28502.0,28501.0,0.001]
[1680331600606,0.04472248,28502.0,28501.0,0.0712]
[1680331600797,0.04472248,28502.0,28501.0,0.0756718]
[1680331606008,0.04472248,28502.0,28501.0,0.3763718]
[1680331610218,0.04472248,28502.0,28501.0,0.0756718]
[1680331613310,0.41532248,28502.0,28501.0,0.0054718]
[1680331613706,0.05,28501.0,28495.0,0.0702]
[1680331613917,0.0698,28497.0,28495.0,0.0702]
[1680331614115,0.0698,28497.0,28496.0,0.00392593]
[1680331614317,0.0698,28497.0,28496.0,0.05392593]
[1680331614724,0.0698,28497.0,28496.0,0.00392593]
[1680331615219,0.0701,28497.0,28496.0,0.00392593]
[1680331615425,0.0701,28497.0,28493.0,0.3147]
[1680331615625,0.0702,28494.0,28493.0,0.3147]
[1680331615826,0.0702,28494.0,28492.0,0.11171292]
[1680331615827,0.1202,28494.0,28492.0,0.11171292]
[1680331616017,0.1202,28494.0,28493.0,0.05]
[1680331616217,0.0702,28494.0,28493.0,0.05]
[1680331616415,0.0702,28494.0,28493.0,0.004]
[1680331616617,0.0702,28494.0,28493.0,0.054]